Cogmind - Beta 14 @@@ ROGUE MODE // 2024.10.31 @ 00:39:48 Player: Fire Result: Destroyed by D-53 Grenadier with Mini Grenade Launcher Performance ------------- Evolutions (0) 0 Regions Visited (2) 400 Robots Destroyed (17) 85 Value Destroyed (374) 374 Prototype IDs (0) 0 Alien Tech Used (0) 0 Bonus (-3) -3 TOTAL SCORE: 856 Bonus ------- Follower Combat Kills 14 Friendly Fire -17 Cogmind --------- Core Integrity 0/250 Matter 300/300 Energy 93/100 System Corruption 0% Temperature Cool (80) Movement Core (50) Location -10/Mines Parts ------- > --- POWER (1) -------- (None) > --- PROPULSION (2) --- (None) > --- UTILITY (2) ------ Sensor Array Signal Interpreter > --- WEAPON (2) ------- (None) > --- INVENTORY (5) ---- Aluminum Leg Compact Wheel Compact Wheel Improved Heat Sink High-capacity Storage Unit Peak State ------------ > --- POWER ------------ Light Angular Momentum Engine > --- PROPULSION ------- Light Treads Light Treads > --- UTILITY ---------- Sensor Array Signal Interpreter > --- WEAPON ----------- Beamcaster Light Assault Rifle > --- INVENTORY -------- Aluminum Leg Compact Wheel High-capacity Storage Unit Small Laser [Rating: 15] Favorites ----------- Power Ion Engine Engine Ion Engine Propulsion Light Treads Treads Light Treads Leg Aluminum Leg Wheel Compact Wheel Utility Sensor Array Device Sensor Array Storage Small Storage Unit Processor Signal Interpreter Weapon Light Assault Rifle Energy Gun Beamcaster Ballistic Gun Light Assault Rifle Build | -11 -10 -10 ------- Run | Yrd Mat Min Slots Evolved . | . . . Power . | . . . Propulsion . | . . . Utility . | . . . Weapon . | . . . Parts Attached 15 | 6 6 3 Power 3 | 1 . 2 Engine 3 | 1 . 2 Core . | . . . Reactor . | . . . Propulsion 5 | 2 3 . Treads 2 | . 2 . Leg 1 | . 1 . Wheel 2 | 2 . . Hover . | . . . Flight . | . . . Utility 3 | 1 2 . Device 1 | . 1 . Storage 1 | 1 . . Processor 1 | . 1 . Hackware . | . . . Protection . | . . . Artifact . | . . . Weapon 4 | 2 1 1 Energy Gun 2 | 1 . 1 Energy Cannon . | . . . Ballistic Gun 2 | 1 1 . Ballistic Cannon . | . . . Launcher . | . . . Special Weapon . | . . . Impact Weapon . | . . . Slashing Weapon . | . . . Piercing Weapon . | . . . Special Melee Weapon . | . . . Unidentified Prototypes . | . . . Parts Lost 7 | . 2 5 Power 2 | . 1 1 Propulsion 3 | . 1 2 Utility . | . . . Weapon 2 | . . 2 Highest Loss Streak 5 | . 1 5 To Critical Strikes . | . . . Average Slot Usage (%) 97 | . 94 99 Engine 13 | . 13 13 Treads 24 | . 19 27 Wheel 3 | . 7 . Device 12 | . 10 14 Storage 1 | . 4 . Processor 12 | . 10 14 Energy Gun 2 | . . 4 Ballistic Gun 25 | . 28 22 Peak Build Rating 15 | 6 7 15 Average Rating 8 | 4 6 9 On Entrance 4 | . 6 6 Naked Turns . | . . . Heaviest Build 16 | 12 13 16 Greatest Support 40 | 26 40 40 Greatest Overweight (x) 1 | . . 1 Average Overweight (x) . | . . . Largest Inventory Capacity 8 | 8 8 5 Average Capacity 5 | 7 5 5 Most Carried 7 | 6 7 5 Average Carried 4 | 3 5 4 Final Capacity 8 | 8 5 5 Final Carried 6 | 6 5 5 Class Distribution -------------------- 81% | Mutant 18% | Scavenger-Mutant Dominant Class ---------------- Mutant | -10/Materials Mutant | -10/Mines Resources | -11 -10 -10 ----------- Run | Yrd Mat Min Matter Collected 448 | 210 190 48 Remotely . | . . . Salvage Created 477 | . 445 32 Parts 39 | . 37 2 Haulers Intercepted . | . . . Recyclers Shooed . | . . . Parts Field Recycled . | . . . Retrieved Matter . | . . . Parts Self-Destructed . | . . . Prevented . | . . . Kills | -11 -10 -10 ------- Run | Yrd Mat Min Combat Hostiles Destroyed 16 | . 14 2 Guns 16 | . 14 2 Classes Destroyed 4 | . 3 1 Watcher 2 | . 2 . Swarmer 7 | . 6 1 Grunt 8 | . 8 . Assembled 1 | . . 1 Best Kill Streak 5 | . 5 1 Combat Bots Only 4 | . 4 1 Max Kills in Single Turn 1 | . 1 1 Gunslinging . | . . . Exploded . | . . . Melee . | . . . Uniques/NPCs Destroyed . | . . . Combat | -11 -10 -10 -------- Run | Yrd Mat Min Hostile Shots Fired 90 | . 72 18 Missed 23 | . 21 2 Damage Taken 924 | . 501 423 Core 263 | . 106 157 Absorbed by Shields . | . . . Core Remaining (%) 100 | 100 . . Volleys Fired 68 | . 55 13 Largest 2 | . 2 2 Hottest 95 | . 40 95 Shots Fired 135 | . 110 25 Gun 135 | . 110 25 Cannon . | . . . Launcher . | . . . Special . | . . . Kinetic 126 | . 110 16 Thermal 9 | . . 9 Explosive . | . . . Electromagnetic . | . . . Robot Hit Streak 12 | . 12 6 Robot Miss Streak 5 | . 3 5 Penetration Max . | . . . Secondary Targets 2 | . 1 1 Max Gunslinging Chain 1 | . 1 1 Shots Hit Robots 81 | . 70 11 Core Hits 34 | . 30 4 Critical Kills . | . . . Critical Parts Destroyed . | . . . Critical Strikes . | . . . Melee Attacks . | . . . Impact . | . . . Slashing . | . . . Piercing . | . . . Sneak Attacks . | . . . Combat Hostiles . | . . . Follow-up Attacks . | . . . Damage Inflicted 711 | . 564 147 Guns 711 | . 564 147 Cannons . | . . . Explosions . | . . . Melee . | . . . Ramming . | . . . Kinetic 630 | . 564 66 Thermal 81 | . . 81 Explosive . | . . . Electromagnetic . | . . . Impact . | . . . Slashing . | . . . Piercing . | . . . Highest Corruption . | . . . Average Corruption . | . . . Corruption Purged . | . . . Corruption Blocked . | . . . Overload Shots . | . . . Overflow Damage . | . . . Projectiles . | . . . Explosions . | . . . Melee . | . . . Knockbacks . | . . . Impact . | . . . Kinetic . | . . . Secondary . | . . . Self-Inflicted Damage . | . . . Shots . | . . . Rammed . | . . . Targets Rammed . | . . . Kicked . | . . . Crushed . | . . . Highest Temperature 168 | . 12 168 Average Temperature 47 | . 7 91 Received Heat Transfer 192 | . 192 . Siege Activations . | . . . Robots Corrupted . | . . . Combat Hostiles . | . . . Parts Fried . | . . . Impact Corruptions . | . . . Robots Melted . | . . . Combat Hostiles . | . . . Parts Melted . | . . . Heat Transferred 148 | . . 148 Parts Sabotaged . | . . . Parts Stolen . | . . . Parts Stripped . | . . . Power Chain Reactions . | . . . Alert | -11 -10 -10 ------- Run | Yrd Mat Min Peak Influence 190 | . 190 106 Initial 70 | . . 70 Average 60 | . 102 31 Maximum Alert Level . | . . . Low Security (%) 100 | 100 100 100 Level 1 . | . . . Level 2 . | . . . Level 3 . | . . . Level 4 . | . . . Level 5 . | . . . High Security . | . . . Max Security . | . . . Squads Dispatched 4 | . 4 . Investigation 2 | . 2 . Extermination . | . . . Reinforcement 2 | . 2 . Assault . | . . . Garrison . | . . . Intercept . | . . . Searches Triggered . | . . . Construction Impeded . | . . . Haulers Reinforced . | . . . Active Scanning Responses . | . . . Cargo Convoy Interrupts . | . . . Stealth | -11 -10 -10 --------- Run | Yrd Mat Min Distress Signals 1 | . 1 . Communications Jammed . | . . . Distress Signals . | . . . Times Spotted 24 | . 18 6 Peak Tracking Total 4 | . 4 3 Tactical Retreats . | . . . Traps | -11 -10 -10 ------- Run | Yrd Mat Min Traps Triggered 1 | . 1 . Indirectly . | . . . Trap Hack Attempts . | . . . Triggered . | . . . Disarmed . | . . . Reprogrammed . | . . . Reused . | . . . Traps Extracted . | . . . Installed . | . . . Triggered . | . . . Machines | -11 -10 -10 ---------- Run | Yrd Mat Min Machines Disabled . | . . . Max in Single Turn . | . . . Machines Repaired . | . . . Machines Dismantled . | . . . Machines Sabotaged . | . . . Overloaded Fab Kills . | . . . Hacking | -11 -10 -10 --------- Run | Yrd Mat Min Machines Accessed 3 | . 3 . Terminals 1 | . 1 . Fabricators . | . . . Repair Stations . | . . . Recycling Units 2 | . 2 . Scanalyzers . | . . . Garrison Access . | . . . Total Hacks 14 | . 14 . Successful 12 | . 12 . Failed 2 | . 2 . Catastrophic . | . . . Database Lockouts . | . . . Manual 8 | . 8 . Terminals 3 | . 3 . Fabricators . | . . . Repair Stations . | . . . Recycling Units 11 | . 11 . Scanalyzers . | . . . Garrison Access . | . . . Terminal Hacks . | . . . Fabricator Hacks . | . . . Repair Station Hacks . | . . . Recycling Unit Hacks 6 | . 6 . Process 1 | . 1 . Report Inventory 3 | . 3 . Retrieve Matter 1 | . 1 . Retrieve Components 1 | . 1 . Scanalyzer . | . . . Garrison Access Hacks . | . . . Unauthorized Hacks 6 | . 6 . Terminals 2 | . 2 . Track 1 | . 1 . Botnet 1 | . 1 . Fabricators . | . . . Repair Stations . | . . . Recycling Units 4 | . 4 . Monitor 2 | . 2 . Recyclers 2 | . 2 . Scanalyzers . | . . . Garrison Access . | . . . Data Cores Recovered . | . . . Used . | . . . Hacking Detections 1 | . 1 . Full Trace Events 1 | . 1 . Feedback Events . | . . . Feedback Blocked . | . . . Robot Schematics Acquired . | . . . Robots Built . | . . . Authchips . | . . . Time . | . . . Total Robot Build Rating . | . . . Part Schematics Acquired . | . . . Parts Built . | . . . Authchips . | . . . Time . | . . . Total Part Build Rating . | . . . Parts Repaired . | . . . Time . | . . . Parts Recycled . | . . . Recycled Matter 96 | . 96 . Retrieved Matter 96 | . 96 . Retrieved Components 8 | . 8 . Parts Scanalyzed . | . . . Part Schematics Acquired . | . . . Parts Damaged . | . . . Bothacking | -11 -10 -10 ------------ Run | Yrd Mat Min Used RIF Installer . | . . . Robots Hacked . | . . . Non-combat . | . . . Combat . | . . . Robot Hacks Applied . | . . . Relay Couplers Released . | . . . Fabnet Peak Effective % . | . . . Robots Rewired . | . . . Allies Hacked . | . . . Hacks Repelled . | . . . Allies | -11 -10 -10 -------- Run | Yrd Mat Min Total Allies 3 | . . 3 Largest Group 3 | . . 3 Highest-Rated Group 40 | . . 40 Highest-Rated Ally 16 | . . 16 Total Orders . | . . . Ally Attacks 16 | . . 16 Total Damage 124 | . . 124 Kills 2 | . . 2 Allies Corrupted . | . . . Allies Melted . | . . . Intel | -11 -10 -10 ------- Run | Yrd Mat Min Robot Analysis Total . | . . . Derelict Logs Recovered 2 | . . 2 Drone Launches . | . . . Drone Recoveries . | . . . Exploration | -11 -10 -10 ------------- Run | Yrd Mat Min Turns Passed 1849 | 55 773 1021 Spaces Moved 1090 | 42 452 596 Core 4 | 1 . 3 Treads 879 | . 286 593 Legs 1 | . 1 . Wheels 206 | 41 165 . Hover . | . . . Flight . | . . . Fastest Speed 50 | 50 90 100 Average Speed 146 | 93 135 159 Slowest Speed 160 | 100 160 160 Overloaded Moves . | . . . Propulsion Burnouts . | . . . Robots Hopped . | . . . Cave-ins Triggered . | . . . Exploration Rate (%) 47 | 3 53 86 Regions Visited 2 Branch Regions 1 Pre-discovered Areas 1 | . . 1 Known Exits Taken 1 | . 1 . Unknown Exits Taken 1 | 1 . . Scrap Searched 1 | . . 1 Spaces Dug . | . . . Terrain Destroyed . | . . . Melee . | . . . Projectile . | . . . AOE . | . . . Terrain Rammed . | . . . Walls Destroyed . | . . . Machines Disabled . | . . . Actions | -11 -10 -10 --------- Run | Yrd Mat Min Total 1222 | 54 525 643 Wait 38 | 1 9 28 Move 1088 | 41 451 596 Hop . | . . . Pick Up 11 | 6 3 2 Fast Attach 7 | 6 1 . Attach 2 | . 1 1 Detach . | . . . Swap 6 | . 4 2 Drop 2 | . 1 1 Fire 68 | . 55 13 Melee . | . . . Ram . | . . . Kick . | . . . Crush . | . . . Escape Stasis . | . . . Rewire . | . . . Trap . | . . . Miscellaneous . | . . . Route ------- -11/Scrapyard -10/Materials (discovered 2 exits: *Mat / *Min) -10/Mines (discovered 1 exit: *Mat) History --------- Turn | Location | Event 19 | -11/Scrapyard | Discovered new exit (range 16) 56 | -11/Scrapyard | Entered Materials 243 | -10/Materials | Discovered new exit (range 16) 300 | -10/Materials | Identified exit to Materials 301 | -10/Materials | Build established: Mutant 811 | -10/Materials | Discovered new exit (range 11) 826 | -10/Materials | Identified exit to Mines 829 | -10/Materials | Entered Mines 831 | -10/Mines | Assisted by bots powering up and referring to "LRC-V3" 890 | -10/Mines | Met a Derelict bent on vengeance 986 | -10/Mines | Discovered exit to Materials (range 10) 1231 | -10/Mines | Learned location of Storage (-7) 1274 | -10/Mines | Assembled infested the area 1716 | -10/Mines | Core integrity fell below 50% 1803 | -10/Mines | Build established: Scavenger-Mutant 1849 | -10/Mines | Core integrity fell below 20% 1850 | -10/Mines | Destroyed by D-53 Grenadier with Mini Grenade Launcher Last Messages --------------- Trooper 1a destroyed. Acquired 3 matter. Acquired 1 matter. as-50182 destroyed. Acquired 1 matter. Dropped Sml. Laser. Acquired Imp. Heat Sink. K-01 Serf collects debris. U-05 Engineer lays Concrete. The unstable cave ceiling collapses. Lgt. Assault Rifle destroyed. U-05 Engineer lays Concrete. Lgt. Angular Momentum Engine destroyed. U-05 Engineer destroyed. K-01 Serf collects debris. Lgt. Treads destroyed. The unstable cave ceiling collapses. K-01 Serf destroyed. The unstable cave ceiling collapses. Beamcaster destroyed. Map ----- +----------------------------------------------------+ | ??# #????????## ##?????## #?# #?????????? | | ??# ########## #?###### #?# #?????????? | | ??# ### #?# #?????????? | | ??#### ###### #?## ##????????? | | ?????# ####### ### #??## #????????? | | ?????# ###### ### #???# #????????? | | ###### #### #????### #???# ##???????? | | #??# #??????## ## # #???# ##??????? | | ########??# #???????###### ## ##???## ##?????? | | ??????????# #????????????#%####?????## ##????? | | ??????????# #???#####????# #?????????## #????? | | ??????????# #?### ## ##### #########??## #????? | | ??????????# #?# ### ## ## ##??# ##???? | | ??????????# #?# # [!* % #??# #???? | | ??????????# ### # %% ! #??#####???? | | ??????????# % % ##### #??????????? | | ??????????##### # ## #?##%dd ##??????????? | | ??????????????# # #### % ###???????????? | | ??????????????# ### ##?????????????? | | ??????????????##### ##### #######????????? | | ??????????????### #### #????????? | | ?????????????## ### = #????????? | | ?????????????# #### * #### #????????? | | #????????????# ##?## < #??? #????????? | | #???????????## ##??# #?????????????? | | #??????????## #???# @ # #?????xx??????? | | #??????????# #???## #?????????????? | | #??????????# """ ##??# #####?????????? | | #??????????# """ #??## #######???????? | | #??????????# """ #???## # #???????? | | #??????????# #????#### ##???????? | | #??????????## ##????## #???????? | | #???????????### ###?????# % ##??????? | | ###???????????# ######### ## # #??????? | | %#???????????# #### # ###??????? | | # #####???????# #############??##### ##???????? | | #%## ##??????# #?????????????????## ###??????? | | [ ##?????# #?????????????????# #??????? | | #?????# #?????????????????# #??????? | | ####### #?????????????????# """ #??????? | | %* #?????????????????# """ #??????? | | ##########?????????????????# """ #??????? | | ####??????????????????????????# #??????? | | # ##?????????????????????????????#######??????? | | ####???????????????????????????????????????????? | | ???????????????????????????????????????????????? | | ???????????????????????????????????????????????? | | | | | | | +----------------------------------------------------+ Best States ------------- Heat Dissipation 25 Energy Generation 18 Energy Capacity 250 Matter Stores 300 Matter Capacity 300 Sight Range 16 Robot Scan Range 14 Terrain Scan Density 10 Evasion (%) 42 Recoil Reduction 2 Item Schematics ----------------- None Robot Schematics ------------------ None Fabricated ------------ Nothing Alien Tech Used ----------------- None Achievements -------------- None Challenges ------------ None Game ------ Seed ChainLightpackMultitool Manual? 0 Play Time 00:22:26 Cumulative 9.0 hours Start 2024.10.31 @ 00:17:37 End 2024.10.31 @ 00:39:48 Sessions 1 Manual Loads 0 Difficulty Rogue Special Mode None Game No. 16 Rogue 16 Adventurer 0 Explorer 0 Win Type - Total 0 Types 0/0/0/0/0/0/0/0/0 Lore% 7 Gallery% 9 Achievement% 12 Wizard Run 0 Options --------- Layout 1 ASCII 0 Keyboard 1 Movement Arrows Keybinds 0 Fullscreen 2 Font 24/Smallcaps Map View 50x35 Zoom Use 0% Tactical HUD 0 Map Filters NONE Filters NONE Steam 1 RUN: aabe4498-de6e-4a42-86ac-041c0dbeb9e1